fUSD/lending_fUSD_20241227
["ID","MTS","AMOUNT","RATE_DAILY","PERIOD"]
[346856619,1735327856343,-870.17,0.00011022,2]
[346856620,1735327856354,-694.62,0.00011022,2]
[346856621,1735327856364,-500.0,0.00011022,2]
[346856622,1735327856374,-1706.89,0.00011022,2]
[346856623,1735327856383,-500.0,0.00011022,2]
[346856624,1735327856392,-762.15,0.00011022,2]
[346856625,1735327856402,-539.93,0.00011022,2]
[346856626,1735327856414,-1144.94,0.00011022,2]
[346856627,1735327856425,-500.0,0.00011022,2]
[346856628,1735327856434,-500.0,0.00011022,2]
[346856629,1735327856444,-533.95,0.00011022,2]
[346856630,1735327856454,-500.0,0.00011022,2]
[346856631,1735327856465,-1569.21,0.00011022,2]
[346856632,1735327856475,-868.02,0.00011022,2]
[346856633,1735327856485,-500.0,0.00011022,2]
[346856634,1735327856495,-829.76,0.00011022,2]
[346856635,1735327856505,-2315.78,0.00011022,2]
[346856636,1735327856515,-543.64,0.00011022,2]
[346856637,1735327856527,-500.0,0.00011022,2]
[346856638,1735327856537,-500.0,0.00011022,2]
[346856639,1735327856547,-500.0,0.00011022,2]
[346856640,1735327856557,-585.74,0.00011022,2]
[346856641,1735327856567,-949.15,0.00011022,2]
[346856642,1735327856578,-1581.89,0.00011022,2]
[346856643,1735327856588,-500.0,0.00011022,2]
[346856644,1735327856599,-500.0,0.00011022,2]
[346856645,1735327856609,-500.0,0.00011022,2]
[346856646,1735327856619,-1157.3,0.00011022,2]
[346856647,1735327856629,-500.0,0.00011022,2]
[346856648,1735327856638,-500.0,0.00011022,2]
[346856649,1735327856647,-500.0,0.00011022,2]
[346856650,1735327856657,-943.84,0.00011022,2]
[346856651,1735327856666,-500.0,0.00011022,2]
[346856652,1735327856676,-1101.33,0.00011022,2]
[346856653,1735327856690,-821.55,0.00011022,2]
[346856654,1735327856699,-500.0,0.00011022,2]
[346856655,1735327856710,-658.36,0.00011022,2]
[346856656,1735327856721,-3777.44,0.00011022,2]
[346856657,1735327856731,-500.0,0.00011022,2]
[346856658,1735327856741,-768.36,0.00011022,2]
[346856659,1735327856751,-1190.5,0.00011022,2]
[346856660,1735327856761,-1080.86,0.00011022,2]
[346856661,1735327856771,-1307.15,0.00011022,2]
[346856662,1735327856781,-500.0,0.00011022,2]
[346856663,1735327856792,-1589.18,0.00011022,2]
[346856664,1735327856802,-500.0,0.00011022,2]
[346856665,1735327856812,-500.0,0.00011022,2]
[346856666,1735327856823,-500.0,0.00011022,2]
[346856667,1735327856832,-500.0,0.00011022,2]
[346856668,1735327856843,-500.0,0.00011022,2]
[346856669,1735327856853,-505.15156816,0.00011022,2]
[346856670,1735327856864,-500.0,0.00011022,2]
[346856671,1735327856874,-152.6435899,0.00011022,2]
[346856672,1735327856884,-681.88,0.00011022,2]
[346856673,1735327856894,-842.18,0.00011022,2]
[346856674,1735327856904,-681.85,0.00011022,2]
[346856675,1735327856914,-500.0,0.00011022,2]
[346856676,1735327856925,-1049.86,0.00011022,2]
[346856677,1735327856937,-688.35,0.00011022,2]
[346856678,1735327856947,-500.0,0.00011022,2]
[346856679,1735327856957,-725.49,0.00011022,2]
[346856680,1735327856967,-500.0,0.00011022,2]
[346856681,1735327856978,-500.0,0.00011022,2]
[346856682,1735327856988,-500.0,0.00011022,2]
[346856683,1735327856998,-500.0,0.00011022,2]
[346856684,1735327857009,-656.43,0.00011022,2]
[346856685,1735327857020,-714.54,0.00011022,2]
[346856686,1735327857031,-1871.7,0.00011022,2]
[346856687,1735327857040,-500.0,0.00011022,2]
[346856688,1735327857051,-500.0,0.00011022,2]
[346856689,1735327857061,-500.0,0.00011022,2]
[346856690,1735327857070,-500.0,0.00011022,2]
[346856691,1735327857080,-500.0,0.00011022,2]
[346856692,1735327857090,-500.0,0.00011022,2]
[346856693,1735327857100,-500.0,0.00011022,2]
[346856694,1735327857111,-500.0,0.00011022,2]
[346856695,1735327857121,-500.0,0.00011022,2]
[346856696,1735327857131,-994.46,0.00011022,2]
[346856697,1735327857141,-500.0,0.00011022,2]
[346856698,1735327857151,-595.27,0.00011022,2]
[346856699,1735327857162,-697.19,0.00011022,2]
[346856700,1735327857172,-1935.22,0.00011022,2]
[346856701,1735327857183,-500.0,0.00011022,2]
[346856702,1735327857193,-500.0,0.00011022,2]
[346856703,1735327857203,-781.34,0.00011022,2]
[346856704,1735327857214,-727.06,0.00011022,2]
[346856705,1735327857224,-500.0,0.00011022,2]
[346856706,1735327857234,-500.0,0.00011022,2]
[346856707,1735327857244,-500.0,0.00011022,2]
[346856708,1735327857255,-500.0,0.00011022,2]
[346856709,1735327857264,-1589.0,0.00011022,2]
[346856710,1735327857273,-1532.28,0.00011022,2]
[346856711,1735327857283,-500.0,0.00011022,2]
[346856712,1735327857293,-1413.87,0.00011022,2]
[346856713,1735327857303,-500.0,0.00011022,2]
[346856714,1735327857313,-500.0,0.00011022,2]
[346856715,1735327857324,-834.18,0.00011022,2]
[346856716,1735327857334,-2207.8,0.00011022,2]
[346856717,1735327857344,-1750.37,0.00011022,2]
[346856718,1735327857354,-636.34,0.00011022,2]
[346856719,1735327857364,-500.0,0.00011022,2]
[346856720,1735327857374,-500.0,0.00011022,2]
[346856721,1735327857385,-500.0,0.00011022,2]
[346856722,1735327857395,-500.0,0.00011022,2]
[346856723,1735327857404,-500.0,0.00011022,2]
[346856724,1735327857414,-500.0,0.00011022,2]
[346856725,1735327857425,-553.14,0.00011022,2]
[346856726,1735327857435,-519.35,0.00011022,2]
[346856727,1735327857445,-500.0,0.00011022,2]
[346856728,1735327857455,-786.72,0.00011022,2]
[346856729,1735327857465,-2308.47,0.00011022,2]
[346856730,1735327857475,-500.0,0.00011022,2]
[346856731,1735327857485,-500.0,0.00011022,2]
[346856732,1735327857495,-500.0,0.00011022,2]
[346856733,1735327857504,-363.61811004,0.00011022,2]
[346856734,1735327857514,-500.0,0.00011022,2]
[346856735,1735327857524,-500.0,0.00011022,2]
[346856736,1735327857534,-4477.95,0.00011022,2]
[346856737,1735327857543,-500.0,0.00011022,2]
[346856738,1735327857553,-500.0,0.00011022,2]
[346856739,1735327857563,-500.0,0.00011022,2]
[346856740,1735327857573,-1005.52,0.00011022,2]
[346856741,1735327857583,-1016.54,0.00011022,2]
[346856742,1735327857592,-6927.11,0.00011022,2]
[346856743,1735327857602,-916.26,0.00011022,2]
[346856744,1735327857612,-500.0,0.00011022,2]
[346856745,1735327857621,-1484.71,0.00011022,2]
[346856746,1735327857631,-500.0,0.00011022,2]
[346856747,1735327857640,-500.0,0.00011022,2]
[346856748,1735327857649,-1276.52,0.00011022,2]
[346856749,1735327857659,-1722.12,0.00011022,2]
[346856750,1735327857668,-645.82,0.00011022,2]
[346856751,1735327857678,-2194.05,0.00011022,2]
[346856752,1735327857688,-500.0,0.00011022,2]
[346856753,1735327857698,-500.0,0.00011022,2]
[346856754,1735327857707,-526.78,0.00011022,2]
[346856755,1735327857717,-7500.0,0.00011022,2]
[346856756,1735327857727,-500.0,0.00011022,2]
[346856757,1735327857737,-1759.06,0.00011022,2]
[346856758,1735327857748,-527.79,0.00011022,2]
[346856759,1735327857849,-500.0,0.00011022,2]
[346856760,1735327857861,-2298.8,0.00011022,2]
[346856761,1735327857871,-1543.82,0.00011022,2]
[346856762,1735327857882,-500.0,0.00011022,2]
[346856763,1735327857891,-500.0,0.00011022,2]
[346856764,1735327857900,-4839.1,0.00011022,2]
[346856765,1735327857912,-500.0,0.00011022,2]
[346856766,1735327857923,-605.85,0.00011022,2]
[346856767,1735327857936,-500.0,0.00011022,2]
[346856768,1735327857945,-500.0,0.00011022,2]
[346856769,1735327857954,-500.0,0.00011022,2]
[346856770,1735327857964,-500.0,0.00011022,2]
[346856771,1735327857974,-500.0,0.00011022,2]
[346856772,1735327857984,-1222.27,0.00011022,2]
[346856773,1735327857997,-722.49,0.00011022,2]
[346856774,1735327858007,-500.0,0.00011022,2]
[346856775,1735327858018,-500.0,0.00011022,2]
[346856776,1735327858028,-748.44,0.00011022,2]
[346856777,1735327858038,-500.0,0.00011022,2]
[346856778,1735327858047,-500.0,0.00011022,2]
[346856779,1735327858059,-675.77,0.00011022,2]
[346856780,1735327858071,-500.0,0.00011022,2]
[346856781,1735327858082,-981.97,0.00011022,2]
[346856782,1735327858092,-690.61,0.00011022,2]
[346856783,1735327858102,-2423.85,0.00011022,2]
[346856784,1735327858113,-3858.17,0.00011022,2]
[346856785,1735327858124,-914.78,0.00011023,2]
[346856786,1735327858134,-500.0,0.00011023,2]
[346856787,1735327858144,-500.0,0.00011023,2]
[346856788,1735327858154,-500.0,0.00011023,2]
[346856789,1735327858164,-313.34127429,0.00011023,2]
[346856790,1735327858175,-300.80577485,0.00011023,2]
[346856791,1735327858184,-500.0,0.00011023,2]
[346856792,1735327858195,-1017.89,0.00011023,2]
[346856793,1735327858205,-500.0,0.00011023,2]
[346856794,1735327858215,-971.36,0.00011023,2]
[346856795,1735327858226,-718.98,0.00011023,2]
[346856796,1735327858236,-771.49,0.00011023,2]
[346856797,1735327858247,-500.0,0.00011023,2]
[346856798,1735327858257,-822.82,0.00011023,2]
[346856799,1735327858267,-500.0,0.00011023,2]
[346856800,1735327858279,-500.0,0.00011023,2]
[346856801,1735327858288,-661.76,0.00011023,2]
[346856802,1735327858299,-410.86869212,0.00011023,2]
[346856803,1735327858308,-500.0,0.00011023,2]
[346856804,1735327858318,-500.0,0.00011023,2]
[346856805,1735327858328,-500.0,0.00011023,2]
[346856806,1735327858338,-500.0,0.00011023,2]
[346856807,1735327858348,-696.42,0.00011023,2]
[346856808,1735327858359,-500.0,0.00011023,2]
[346856809,1735327858368,-569.46,0.00011023,2]
[346856810,1735327858378,-1062.3,0.00011023,2]
[346856811,1735327858388,-965.87,0.00011023,2]
[346856812,1735327858398,-500.0,0.00011023,2]
[346856813,1735327858408,-500.0,0.00011023,2]
[346856814,1735327858419,-500.0,0.00011023,2]
[346856815,1735327858430,-708.84,0.00011023,2]
[346856816,1735327858440,-500.0,0.00011023,2]
[346856817,1735327858451,-500.0,0.00011023,2]
[346856818,1735327858460,-500.0,0.00011023,2]
[346856819,1735327858470,-500.0,0.00011023,2]
[346856820,1735327858480,-1204.2,0.00011023,2]
[346856821,1735327858491,-500.0,0.00011023,2]
[346856822,1735327858500,-500.0,0.00011023,2]
[346856823,1735327858510,-500.0,0.00011023,2]
[346856824,1735327858520,-562.07,0.00011023,2]
[346856825,1735327858531,-500.0,0.00011023,2]
[346856826,1735327858540,-500.0,0.00011023,2]
[346856827,1735327858550,-500.0,0.00011023,2]
[346856828,1735327858559,-822.17,0.00011023,2]
[346856829,1735327858569,-500.0,0.00011023,2]
[346856830,1735327858578,-759.81,0.00011023,2]
[346856831,1735327858588,-500.0,0.00011023,2]
[346856832,1735327858597,-962.7,0.00011023,2]
[346856833,1735327858607,-500.0,0.00011023,2]
[346856834,1735327858617,-500.0,0.00011023,2]
[346856835,1735327858626,-324.0,0.00011023,2]
[346856836,1735327858639,-322.58858881,0.00011023,2]
[346856837,1735327858649,-500.0,0.00011023,2]
[346856838,1735327858660,-500.0,0.00011023,2]
[346856839,1735327858671,-697.23,0.00011023,2]
[346856840,1735327858680,-501.74,0.00011023,2]
[346856841,1735327858692,-500.0,0.00011023,2]
[346856842,1735327858703,-507.21,0.00011023,2]
[346856843,1735327858714,-500.0,0.00011023,2]
[346856844,1735327858723,-749.45,0.00011023,2]
[346856845,1735327858734,-688.19,0.00011023,2]
[346856846,1735327858743,-500.0,0.00011023,2]
[346856847,1735327858753,-500.0,0.00011023,2]
[346856848,1735327858762,-500.0,0.00011023,2]
[346856849,1735327858771,-500.0,0.00011023,2]
[346856850,1735327858781,-500.0,0.00011023,2]
[346856851,1735327858791,-500.0,0.00011023,2]
[346856852,1735327858800,-773.33,0.00011023,2]
[346856853,1735327858810,-483.62990618,0.00011023,2]
[346856854,1735327858819,-626.42,0.00011023,2]
[346856855,1735327858828,-500.0,0.00011023,2]
[346856856,1735327858837,-183.62454851,0.00011023,2]
[346856857,1735327858847,-567.69,0.00011023,2]
[346856858,1735327858856,-500.0,0.00011023,2]
[346856859,1735327858866,-1366.74,0.00011023,2]
[346856860,1735327858875,-500.0,0.00011023,2]
[346856861,1735327858884,-935.37,0.00011023,2]
[346856862,1735327858893,-500.0,0.00011023,2]
[346856863,1735327858903,-500.0,0.00011023,2]
[346856864,1735327858912,-500.0,0.00011023,2]
[346856865,1735327858921,-776.14,0.00011023,2]
[346856866,1735327858934,-738.92,0.00011023,2]
[346856867,1735327858943,-500.0,0.00011023,2]
[346856868,1735327858952,-802.32,0.00011023,2]
[346856869,1735327858961,-500.0,0.00011023,2]
[346856870,1735327858972,-263.49485327,0.00011023,2]
[346856871,1735327858981,-697.26,0.00011023,2]
[346856872,1735327858990,-500.0,0.00011023,2]
[346856873,1735327859000,-500.0,0.00011023,2]
[346856874,1735327859010,-1241.45,0.00011023,2]
[346856875,1735327859019,-500.0,0.00011023,2]
[346856876,1735327859029,-715.61,0.00011023,2]
[346856877,1735327859039,-500.0,0.00011023,2]
[346856878,1735327859049,-500.0,0.00011023,2]
[346856879,1735327859058,-707.39,0.00011023,2]
[346856880,1735327859067,-1071.39,0.00011023,2]
[346856881,1735327859077,-500.0,0.00011023,2]
[346856882,1735327859086,-150.0,0.00011023,2]
[346856883,1735327859095,-753.07,0.00011023,2]
[346856884,1735327859104,-818.76,0.00011023,2]
[346856885,1735327859114,-500.0,0.00011023,2]
[346856886,1735327859123,-500.0,0.00011023,2]
[346856887,1735327859132,-621.07,0.00011023,2]
[346856888,1735327859141,-1320.96,0.00011023,2]
[346856889,1735327859151,-600.21,0.00011023,2]
[346856890,1735327859160,-662.7,0.00011023,2]
[346856891,1735327859170,-1468.15,0.00011023,2]
[346856892,1735327859179,-932.25,0.00011023,2]
[346856893,1735327859188,-992.46,0.00011023,2]
[346856894,1735327859197,-500.0,0.00011023,2]
[346856895,1735327859207,-500.0,0.00011023,2]
[346856896,1735327859216,-500.0,0.00011023,2]
[346856897,1735327859225,-500.0,0.00011023,2]
[346856898,1735327859235,-500.0,0.00011023,2]
[346856899,1735327859244,-1480.9,0.00011023,2]
[346856900,1735327859254,-500.0,0.00011023,2]
[346856901,1735327859263,-500.0,0.00011023,2]
[346856902,1735327859273,-1086.28,0.00011023,2]
[346856903,1735327859283,-500.0,0.00011023,2]
[346856904,1735327859292,-520.26,0.00011023,2]
[346856905,1735327859302,-821.13,0.00011023,2]
[346856906,1735327859311,-500.0,0.00011023,2]
[346856907,1735327859320,-500.0,0.00011023,2]
[346856908,1735327859329,-1117.69,0.00011023,2]
[346856909,1735327859339,-810.22,0.00011023,2]
[346856910,1735327859352,-500.0,0.00011023,2]
[346856911,1735327859361,-500.0,0.00011023,2]
[346856912,1735327859371,-500.0,0.00011023,2]
[346856913,1735327859380,-1152.54,0.00011023,2]
[346856914,1735327859389,-2119.05,0.00011023,2]
[346856915,1735327859398,-500.0,0.00011023,2]
[346856916,1735327859407,-500.0,0.00011023,2]
[346856917,1735327859416,-1462.26,0.00011023,2]
[346856918,1735327859425,-500.0,0.00011023,2]
[346856919,1735327859435,-500.0,0.00011023,2]
[346856920,1735327859445,-1875.0,0.00011023,2]
[346856921,1735327859457,-254.52744169,0.00011023,2]
[346856922,1735327859469,-721.22,0.00011023,2]
[346856923,1735327859482,-500.0,0.00011023,2]
[346856924,1735327859493,-500.0,0.00011023,2]
[346856925,1735327859505,-734.13,0.00011023,2]
[346856926,1735327859515,-1296.55,0.00011023,2]
[346856927,1735327859524,-1195.8,0.00011023,2]
[346856928,1735327859534,-500.0,0.00011023,2]
[346856929,1735327859543,-1752.04,0.00011023,2]
[346856930,1735327859553,-500.0,0.00011023,2]
[346856931,1735327859562,-640.92,0.00011023,2]
[346856932,1735327859572,-1105.79,0.00011023,2]
[346856933,1735327859582,-500.0,0.00011023,2]
[346856934,1735327859591,-6790.11,0.00011023,2]
[346856935,1735327859600,-4114.97,0.00011023,2]
[346856936,1735327859610,-5992.19,0.00011023,2]
[346856937,1735327859619,-2193.51,0.00011024,2]
[346856938,1735327859628,-3946.9,0.00011024,2]
[346856939,1735327859638,-799.37,0.00011024,2]
[346856940,1735327859647,-2095.69,0.00011024,2]
[346856941,1735327859656,-2349.17,0.00011024,2]
[346856942,1735327859667,-2223.27,0.00011024,2]
[346856943,1735327859677,-1685.15,0.00011024,2]
[346856944,1735327859686,-2515.82,0.00011024,2]
[346856945,1735327859696,-2911.41,0.00011024,2]
[346856946,1735327859705,-5091.44,0.00011024,2]
[346856947,1735327859715,-7500.0,0.00011026,2]
[346856948,1735327859725,-3004.86,0.00011027,2]
[346856949,1735327859734,-22542.46,0.00011027,2]
[346856950,1735327859744,-855.98,0.00011027,2]
[346856951,1735327859753,-3894.85,0.00011027,2]
[346856952,1735327859763,-2427.1,0.00011027,2]
[346856953,1735327859772,-1765.52,0.00011027,2]
[346856954,1735327859782,-4989.84,0.00011027,2]
[346856955,1735327859791,-700.64,0.00011027,2]
[346856956,1735327859801,-1477.0,0.00011027,2]
[346856957,1735327859810,-1778.7,0.00011027,2]
[346856958,1735327859820,-1268.62,0.00011027,2]
[346856959,1735327859830,-4508.18,0.00011027,2]
[346856960,1735327859840,-3201.31,0.00011027,2]
[346856961,1735327859850,-151.0,0.00011027,2]
[346856962,1735327859861,-151.0,0.00011027,2]
[346856963,1735327859870,-2228.05,0.00011027,2]
[346856964,1735327859879,-156.687494,0.00011027,2]
[346856965,1735327859889,-500.0,0.00011029,2]
[346856966,1735327859899,-7500.0,0.00011029,2]
[346856967,1735327859909,-345484.0715132,0.0001103,4]
[346856968,1735327859918,-151.0,0.0001103,2]
[346856969,1735327859931,-151.0,0.0001103,2]
[346856970,1735327859941,-1000.0,0.000111,2]
[346856971,1735327859951,-2600.0,0.0001115,2]
[346856972,1735327859960,-900.0,0.0001115,2]
[346856973,1735327859971,-500.0,0.00011166,2]
[346856974,1735327859980,-2500.0,0.0001119,2]
[346856975,1735327859990,-165.8322718,0.00011196,2]
[346856976,1735327860000,-427.74124,0.00011201,2]
[346856977,1735327860010,-237.0,0.0001124,2]
[346856978,1735327860021,-547.63,0.00011294,2]
[346856979,1735327860032,-2480.34,0.00011294,2]
[346856980,1735327860042,-620.73,0.00011294,2]
[346856981,1735327860052,-8207.84,0.00011294,2]
[346856982,1735327860063,-2202.02,0.00011294,2]
[346856983,1735327860073,-1962.81,0.00011294,2]
[346856984,1735327860083,-1805.97,0.00011294,2]
[346856985,1735327860094,-3124.93,0.00011294,2]
[346856986,1735327860104,-500.0,0.00011294,2]
[346856987,1735327860113,-500.0,0.00011294,2]
[346856988,1735327860123,-500.0,0.00011294,2]
[346856989,1735327860133,-424.91350383,0.00011294,2]
[346856990,1735327860142,-1122.76,0.00011294,2]
[346856991,1735327860152,-500.0,0.00011294,2]
[346856992,1735327860162,-505.76,0.00011294,2]
[346856993,1735327860172,-540.02,0.00011294,2]
[346856994,1735327860182,-500.0,0.00011294,2]
[346856995,1735327860192,-1094.22,0.00011294,2]
[346856996,1735327860202,-638.62,0.00011294,2]
[346856997,1735327860212,-500.0,0.00011294,2]
[346856998,1735327860222,-604.36,0.00011294,2]
[346856999,1735327860231,-910.93,0.00011294,2]
[346857000,1735327860241,-511.08,0.00011295,2]
[346857001,1735327860251,-642.28,0.00011295,2]
[346857002,1735327860261,-500.0,0.00011295,2]
[346857003,1735327860271,-745.66,0.00011295,2]
[346857004,1735327860282,-500.0,0.00011295,2]
[346857005,1735327860292,-500.0,0.00011295,2]
[346857006,1735327860302,-579.92,0.00011295,2]
[346857007,1735327860312,-762.19,0.00011295,2]
[346857008,1735327860321,-899.09,0.00011295,2]
[346857009,1735327860331,-690.44,0.00011295,2]
[346857010,1735327860340,-1257.59,0.00011295,2]
[346857011,1735327860350,-500.0,0.00011295,2]
[346857012,1735327860359,-880.97,0.00011295,2]
[346857013,1735327860370,-627.78,0.00011295,2]
[346857014,1735327860379,-500.0,0.00011295,2]
[346857015,1735327860389,-500.0,0.00011295,2]
[346857016,1735327860399,-857.04,0.00011295,2]
[346857017,1735327860409,-1043.47,0.00011295,2]
[346857018,1735327860418,-544.68,0.00011295,2]
[346857019,1735327860428,-500.0,0.00011295,2]
[346857020,1735327860437,-335.84,0.00011295,2]
[346857021,1735327860447,-807.99,0.00011295,2]
[346857022,1735327860458,-500.0,0.00011295,2]
[346857023,1735327860467,-1037.05643,0.00011295,2]
[346857024,1735327860477,-910.58703,0.00011295,2]
[346857025,1735327860487,-500.0,0.00011295,2]
[346857026,1735327860497,-500.0,0.00011295,2]
[346857027,1735327860507,-908.5,0.00011295,2]
[346857028,1735327860517,-500.0,0.00011295,2]
[346857029,1735327860528,-500.0,0.00011295,2]
[346857030,1735327860539,-500.0,0.00011295,2]
[346857031,1735327860549,-587.54345675,0.00011295,2]
[346857032,1735327860559,-500.0,0.00011295,2]
[346857033,1735327860570,-956.84,0.00011295,2]
[346857034,1735327860579,-1654.72,0.00011295,2]
[346857035,1735327860589,-513.22,0.00011295,2]
[346857036,1735327860599,-473.94,0.00011295,2]
[346857037,1735327860609,-746.43,0.00011295,2]
[346857038,1735327860618,-500.0,0.00011295,2]
[346857039,1735327860628,-500.0,0.00011295,2]
[346857040,1735327860637,-1326.81,0.00011295,2]
[346857041,1735327860647,-621.88,0.00011295,2]
[346857042,1735327860656,-3050.71,0.00011295,2]
[346857043,1735327860667,-500.0,0.00011295,2]
[346857044,1735327860676,-795.47,0.00011295,2]
[346857045,1735327860686,-500.0,0.00011295,2]
[346857046,1735327860695,-744.87,0.00011295,2]
[346857047,1735327860705,-500.0,0.00011295,2]
[346857048,1735327860714,-1537.63,0.00011295,2]
[346857049,1735327860724,-3941.67,0.00011295,2]
[346857050,1735327860734,-1113.49,0.00011295,2]
[346857051,1735327860744,-500.0,0.00011295,2]
[346857052,1735327860754,-500.0,0.00011295,2]
[346857053,1735327860763,-500.0,0.00011295,2]
[346857054,1735327860773,-500.0,0.00011295,2]
[346857055,1735327860783,-974.18,0.00011295,2]
[346857056,1735327860793,-713.43,0.00011295,2]
[346857057,1735327860803,-600.69,0.00011295,2]
[346857058,1735327860813,-1720.59,0.00011295,2]
[346857059,1735327860823,-2437.95,0.00011295,2]
[346857060,1735327860834,-658.82,0.00011295,2]
[346857061,1735327860843,-676.84,0.00011295,2]
[346857062,1735327860853,-500.0,0.00011295,2]
[346857063,1735327860863,-604.71,0.00011295,2]
[346857064,1735327860874,-619.15,0.00011295,2]
[346857065,1735327860885,-778.14,0.00011295,2]
[346857066,1735327860895,-10480.82,0.00011295,2]
[346857067,1735327860906,-1304.59,0.00011295,2]
[346857068,1735327860917,-2971.89,0.00011295,2]
[346857069,1735327860931,-1634.21,0.00011295,2]
[346857070,1735327860941,-780.68,0.00011295,2]
[346857071,1735327860952,-853.28,0.00011295,2]
[346857072,1735327860964,-1842.74,0.00011295,2]
[346857073,1735327860975,-500.0,0.00011295,2]
[346857074,1735327860985,-1708.9,0.00011295,2]
[346857075,1735327860995,-6904.04,0.00011295,2]
[346857076,1735327861006,-500.0,0.00011295,2]
[346857077,1735327861016,-500.0,0.00011295,2]
[346857078,1735327861027,-500.0,0.00011295,2]
[346857079,1735327861037,-1023.43,0.00011295,2]
[346857080,1735327861048,-1164.81,0.00011295,2]
[346857081,1735327861058,-500.0,0.00011295,2]
[346857082,1735327861067,-760.12,0.00011295,2]
[346857083,1735327861077,-1296.17,0.00011295,2]
[346857084,1735327861087,-1392.95,0.00011295,2]
[346857085,1735327861097,-962.75,0.00011295,2]
[346857086,1735327861107,-709.44,0.00011295,2]
[346857087,1735327861117,-2076.22,0.00011295,2]
[346857088,1735327861127,-1737.66,0.00011295,2]
[346857089,1735327861138,-1039.21,0.00011295,2]
[346857090,1735327861149,-814.6,0.00011295,2]
[346857091,1735327861160,-500.0,0.00011295,2]
[346857092,1735327861170,-960.84,0.00011295,2]
[346857093,1735327861180,-2282.43,0.00011295,2]
[346857094,1735327861191,-979.22,0.00011295,2]
[346857095,1735327861202,-2619.64,0.00011295,2]
[346857096,1735327861212,-9634.39,0.00011295,2]
[346857097,1735327861222,-1048.16,0.00011295,2]
[346857098,1735327861232,-21909.05,0.00011295,2]
[346857099,1735327861242,-639.63,0.00011295,2]
[346857100,1735327861252,-661.09,0.00011295,2]
[346857101,1735327861262,-500.0,0.00011295,2]
[346857102,1735327861272,-642.38,0.00011295,2]
[346857103,1735327861285,-500.0,0.00011295,2]
[346857104,1735327861295,-3219.25,0.00011295,2]
[346857105,1735327861306,-948.79,0.00011295,2]
[346857106,1735327861316,-1319.06,0.00011295,2]
[346857107,1735327861327,-5875.46,0.00011295,2]
[346857108,1735327861337,-1008.61,0.00011295,2]
[346857109,1735327861347,-1508.34,0.00011295,2]
[346857110,1735327861357,-2086.31,0.00011295,2]
[346857111,1735327861368,-3330.48,0.00011295,2]
[346857112,1735327861378,-1098.9,0.00011295,2]
[346857113,1735327861388,-811.95,0.00011295,2]
[346857114,1735327861398,-1040.8,0.00011295,2]
[346857115,1735327861408,-1153.33,0.00011295,2]
[346857116,1735327861419,-1587.99,0.00011295,2]
[346857117,1735327861430,-16931.01,0.00011295,2]
[346857118,1735327861440,-3607.91,0.00011295,2]